[Event "Early-Titled-Tuesday-Blitz-October-17-2023"]
[Site "Chess.com"]
[Date "2023.10.17"]
[Round "5"]
[White "K_A_S_T_O_R"]
[Black "Druid24"]
[Result "1-0"]
[WhiteElo "2875"]
[BlackElo "2740"]
[TimeControl "180+1"]
[EndTime "8:58:12 PDT"]
[Termination "K_A_S_T_O_R won on time"]

1. e4 {[%clk 0:03:00.9]} 1... g6 {[%clk 0:02:59.7]} 2. d4 {[%clk 0:03:00.6]}
2... Bg7 {[%clk 0:02:59]} 3. Nf3 {[%clk 0:03:01.1]} 3... d6 {[%clk 0:02:56.6]}
4. Bc4 {[%clk 0:03:00]} 4... c6 {[%clk 0:02:56.8]} 5. Bb3 {[%clk 0:02:59.6]}
5... Nf6 {[%clk 0:02:57.1]} 6. Qe2 {[%clk 0:02:59]} 6... O-O {[%clk 0:02:57.2]}
7. e5 {[%clk 0:02:57.2]} 7... Nd5 {[%clk 0:02:55]} 8. h3 {[%clk 0:02:56.2]} 8...
a5 {[%clk 0:02:54.1]} 9. a4 {[%clk 0:02:55.3]} 9... Na6 {[%clk 0:02:52.4]} 10.
O-O {[%clk 0:02:53.5]} 10... Bf5 {[%clk 0:02:52.5]} 11. Na3 {[%clk 0:02:45.2]}
11... Nab4 {[%clk 0:02:51.6]} 12. Rd1 {[%clk 0:02:41.3]} 12... Re8 {[%clk
0:02:47.8]} 13. c3 {[%clk 0:02:36.6]} 13... Na6 {[%clk 0:02:44.9]} 14. Nc4
{[%clk 0:02:36.6]} 14... Qd7 {[%clk 0:02:40.9]} 15. Nxa5 {[%clk 0:02:24.2]}
15... Nc5 {[%clk 0:02:33.7]} 16. dxc5 {[%clk 0:02:20.8]} 16... Rxa5 {[%clk
0:02:33.2]} 17. Bd2 {[%clk 0:01:53.3]} 17... Rxc5 {[%clk 0:01:46.8]} 18. c4
{[%clk 0:01:48.3]} 18... Nc7 {[%clk 0:01:39.5]} 19. Bb4 {[%clk 0:01:40.3]} 19...
Qe6 {[%clk 0:01:25.3]} 20. Bxc5 {[%clk 0:01:35.1]} 20... dxc5 {[%clk 0:01:26.2]}
21. Re1 {[%clk 0:01:30.4]} 21... h5 {[%clk 0:01:19.4]} 22. Bc2 {[%clk
0:01:23.3]} 22... Bxc2 {[%clk 0:01:10.9]} 23. Qxc2 {[%clk 0:01:22.9]} 23... Bh6
{[%clk 0:01:11.7]} 24. Rad1 {[%clk 0:01:19.2]} 24... Na6 {[%clk 0:00:49.8]} 25.
b3 {[%clk 0:01:14.9]} 25... Nb4 {[%clk 0:00:43.1]} 26. Qe4 {[%clk 0:01:14.7]}
26... Kh8 {[%clk 0:00:41.8]} 27. g4 {[%clk 0:01:12]} 27... Na2 {[%clk
0:00:39.2]} 28. Rd3 {[%clk 0:01:02.3]} 28... Nb4 {[%clk 0:00:37]} 29. Rc3 {[%clk
0:00:49.6]} 29... Rg8 {[%clk 0:00:36.5]} 30. Kh2 {[%clk 0:00:47.5]} 30... Rd8
{[%clk 0:00:30]} 31. gxh5 {[%clk 0:00:42.4]} 31... gxh5 {[%clk 0:00:30.9]} 32.
Rg1 {[%clk 0:00:41.8]} 32... Na2 {[%clk 0:00:28.8]} 33. Rd3 {[%clk 0:00:35.8]}
33... Rxd3 {[%clk 0:00:26.3]} 34. Qxd3 {[%clk 0:00:35.8]} 34... Bf4+ {[%clk
0:00:27.2]} 35. Kg2 {[%clk 0:00:35.5]} 35... Qc8 {[%clk 0:00:19]} 36. Qe4 {[%clk
0:00:24.1]} 36... Bh6 {[%clk 0:00:15.9]} 37. Kh2 {[%clk 0:00:22.5]} 37... Qe6
{[%clk 0:00:14.2]} 38. Ng5 {[%clk 0:00:22]} 38... Qg6 {[%clk 0:00:05.9]} 39. Qf4
{[%clk 0:00:18.2]} 39... Kg7 {[%clk 0:00:04]} 40. Ne6+ {[%clk 0:00:17.9]} 40...
Kh8 {[%clk 0:00:02.6]} 41. Rxg6 {[%clk 0:00:08.6]} 41... Bxf4+ {[%clk
0:00:02.3]} 42. Nxf4 {[%clk 0:00:09]} 42... fxg6 {[%clk 0:00:03.2]} 43. Nxg6+
{[%clk 0:00:09.4]} 43... Kg7 {[%clk 0:00:02.9]} 44. Nxe7 {[%clk 0:00:09.9]}
44... Kf7 {[%clk 0:00:01.2]} 45. Nc8 {[%clk 0:00:09.7]} 1-0

[Event "Early-Titled-Tuesday-Blitz-October-17-2023"]
[Site "Chess.com"]
[Date "2023.10.17"]
[Round "5"]
[White "ckgchess"]
[Black "SaqoChess_Twitch"]
[Result "1-0"]
[WhiteElo "2894"]
[BlackElo "2618"]
[TimeControl "180+1"]
[EndTime "8:58:12 PDT"]
[Termination "ckgchess won by resignation"]

1. e4 {[%clk 0:02:49.7]} 1... c5 {[%clk 0:03:00]} 2. c3 {[%clk 0:02:49.4]} 2...
d5 {[%clk 0:03:00.2]} 3. exd5 {[%clk 0:02:50.3]} 3... Qxd5 {[%clk 0:03:01.1]} 4.
d4 {[%clk 0:02:50.7]} 4... Nf6 {[%clk 0:02:58]} 5. Nf3 {[%clk 0:02:51.1]} 5...
Bg4 {[%clk 0:02:57.7]} 6. Be2 {[%clk 0:02:51.2]} 6... Nc6 {[%clk 0:02:57.7]} 7.
h3 {[%clk 0:02:51.5]} 7... Bh5 {[%clk 0:02:57.7]} 8. O-O {[%clk 0:02:51.4]} 8...
e6 {[%clk 0:02:57.7]} 9. Be3 {[%clk 0:02:51.3]} 9... cxd4 {[%clk 0:02:57.9]} 10.
cxd4 {[%clk 0:02:52.2]} 10... Be7 {[%clk 0:02:57.8]} 11. Nc3 {[%clk 0:02:51.7]}
11... Qd6 {[%clk 0:02:58.3]} 12. Qb3 {[%clk 0:02:51.9]} 12... O-O {[%clk
0:02:56.6]} 13. Rfd1 {[%clk 0:02:51.4]} 13... a6 {[%clk 0:02:56]} 14. d5 {[%clk
0:02:47.9]} 14... exd5 {[%clk 0:02:34.5]} 15. Nxd5 {[%clk 0:02:48.8]} 15... Nxd5
{[%clk 0:02:35.1]} 16. Rxd5 {[%clk 0:02:48.2]} 16... Qg6 {[%clk 0:02:35.4]} 17.
Bd3 {[%clk 0:02:24.6]} 17... Bxf3 {[%clk 0:01:56.5]} 18. Bxg6 {[%clk 0:02:24.1]}
18... Bxd5 {[%clk 0:01:56.9]} 19. Bxh7+ {[%clk 0:02:16.3]} 19... Kxh7 {[%clk
0:01:56.3]} 20. Qxd5 {[%clk 0:02:17.2]} 20... Bf6 {[%clk 0:01:51.8]} 21. Qd7
{[%clk 0:02:07.1]} 21... Bxb2 {[%clk 0:01:38.5]} 22. Rb1 {[%clk 0:02:06.9]}
22... Bf6 {[%clk 0:01:37.1]} 23. Rxb7 {[%clk 0:02:04.3]} 23... Ne5 {[%clk
0:01:30.8]} 24. Qf5+ {[%clk 0:02:04.1]} 24... Ng6 {[%clk 0:01:28.2]} 25. Bg5
{[%clk 0:01:56.6]} 25... Bxg5 {[%clk 0:01:14.3]} 26. Qxg5 {[%clk 0:01:57.5]}
26... Rae8 {[%clk 0:01:10.1]} 27. g3 {[%clk 0:01:49.3]} 27... Re6 {[%clk
0:01:06.8]} 28. h4 {[%clk 0:01:48.3]} 28... Ne5 {[%clk 0:00:57.9]} 29. Kg2
{[%clk 0:01:48.1]} 29... Kg8 {[%clk 0:00:53.3]} 30. Re7 {[%clk 0:01:33.9]} 30...
Re8 {[%clk 0:00:48.5]} 31. Rxe8+ {[%clk 0:01:33.6]} 31... Rxe8 {[%clk
0:00:48.8]} 32. Qd2 {[%clk 0:01:30.1]} 32... Re6 {[%clk 0:00:48.4]} 33. Qd8+
{[%clk 0:01:29]} 33... Kh7 {[%clk 0:00:48.5]} 34. Qc7 {[%clk 0:01:29.6]} 34...
Kg8 {[%clk 0:00:40]} 35. a4 {[%clk 0:01:28.2]} 35... g6 {[%clk 0:00:39.1]} 36.
f4 {[%clk 0:01:16.8]} 36... Ng4 {[%clk 0:00:37.9]} 37. Qd8+ {[%clk 0:01:02]}
37... Kg7 {[%clk 0:00:36.2]} 38. Qg5 {[%clk 0:01:02.7]} 38... Nf6 {[%clk
0:00:08.6]} 39. Kf3 {[%clk 0:00:53.1]} 39... Nh7 {[%clk 0:00:07.6]} 40. Qc5
{[%clk 0:00:52]} 40... Nf6 {[%clk 0:00:06.4]} 41. f5 {[%clk 0:00:50.1]} 41...
gxf5 {[%clk 0:00:04.8]} 42. Qxf5 {[%clk 0:00:51]} 42... Nd7 {[%clk 0:00:04.4]}
43. Kg2 {[%clk 0:00:47.6]} 43... Nf6 {[%clk 0:00:04.2]} 44. Qg5+ {[%clk
0:00:46]} 44... Kf8 {[%clk 0:00:04.1]} 45. h5 {[%clk 0:00:44.7]} 45... Ng8
{[%clk 0:00:04.7]} 46. g4 {[%clk 0:00:43.4]} 46... Rf6 {[%clk 0:00:05.2]} 47.
Qc5+ {[%clk 0:00:40.6]} 47... Kg7 {[%clk 0:00:05.2]} 48. Qe5 {[%clk 0:00:41.2]}
48... Kh7 {[%clk 0:00:05]} 49. g5 {[%clk 0:00:40.7]} 49... Re6 {[%clk
0:00:05.5]} 50. Qf5+ {[%clk 0:00:41.1]} 50... Kg7 {[%clk 0:00:05.9]} 51. Kh3
{[%clk 0:00:36.8]} 51... Re7 {[%clk 0:00:03.1]} 52. h6+ {[%clk 0:00:36.3]} 52...
Nxh6 {[%clk 0:00:03.4]} 53. gxh6+ {[%clk 0:00:37.2]} 53... Kxh6 {[%clk
0:00:02.4]} 54. Qf6+ {[%clk 0:00:37.6]} 54... Kh5 {[%clk 0:00:02.6]} 55. Qxe7
{[%clk 0:00:38]} 55... f6 {[%clk 0:00:03.5]} 56. Qg7 {[%clk 0:00:36.1]} 56... a5
{[%clk 0:00:04.4]} 57. Qg4+ {[%clk 0:00:36]} 57... Kh6 {[%clk 0:00:04.3]} 58.
Kh4 {[%clk 0:00:36.1]} 58... Kh7 {[%clk 0:00:04.9]} 59. Kh5 {[%clk 0:00:36.2]}
59... Kh8 {[%clk 0:00:05.8]} 60. Qg6 {[%clk 0:00:36.5]} 60... f5 {[%clk
0:00:06.7]} 61. Kh6 {[%clk 0:00:37.4]} 1-0

[Event "Early-Titled-Tuesday-Blitz-October-17-2023"]
[Site "Chess.com"]
[Date "2023.10.17"]
[Round "5"]
[White "vladislavkovalev"]
[Black "Nitzan_Steinberg"]
[Result "1-0"]
[WhiteElo "2874"]
[BlackElo "2843"]
[TimeControl "180+1"]
[EndTime "8:58:13 PDT"]
[Termination "vladislavkovalev won by resignation"]

1. e4 {[%clk 0:02:58.6]} 1... g6 {[%clk 0:02:57.4]} 2. d4 {[%clk 0:02:58.7]}
2... Bg7 {[%clk 0:02:57.2]} 3. Be3 {[%clk 0:02:59.4]} 3... c5 {[%clk 0:02:56.8]}
4. Nc3 {[%clk 0:02:58.9]} 4... cxd4 {[%clk 0:02:47.7]} 5. Bxd4 {[%clk
0:02:59.8]} 5... Bxd4 {[%clk 0:02:47.1]} 6. Qxd4 {[%clk 0:03:00.7]} 6... Nf6
{[%clk 0:02:47.8]} 7. e5 {[%clk 0:02:38.3]} 7... Nc6 {[%clk 0:02:47.9]} 8. Qf4
{[%clk 0:02:38.7]} 8... Nh5 {[%clk 0:02:47.4]} 9. Qe3 {[%clk 0:02:39.4]} 9...
Ng7 {[%clk 0:02:28.4]} 10. O-O-O {[%clk 0:02:36.4]} 10... O-O {[%clk 0:02:22.2]}
11. Nf3 {[%clk 0:02:32]} 11... d6 {[%clk 0:01:57.1]} 12. exd6 {[%clk 0:02:20]}
12... exd6 {[%clk 0:01:56.1]} 13. Qf4 {[%clk 0:02:09.1]} 13... Nh5 {[%clk
0:01:37.7]} 14. Qxd6 {[%clk 0:01:36]} 14... Bg4 {[%clk 0:01:36.3]} 15. Qxd8
{[%clk 0:01:26.6]} 15... Raxd8 {[%clk 0:01:37.2]} 16. Rxd8 {[%clk 0:01:26.9]}
16... Rxd8 {[%clk 0:01:34.6]} 17. Nd2 {[%clk 0:01:21.8]} 17... Nd4 {[%clk
0:01:30.4]} 18. h3 {[%clk 0:01:09.3]} 18... Be6 {[%clk 0:01:27.7]} 19. g3 {[%clk
0:00:51.9]} 19... Kg7 {[%clk 0:01:20.4]} 20. Bg2 {[%clk 0:00:51.4]} 20... b5
{[%clk 0:01:20.8]} 21. Nb3 {[%clk 0:00:34.2]} 21... b4 {[%clk 0:01:07.4]} 22.
Nxd4 {[%clk 0:00:21.3]} 22... Rxd4 {[%clk 0:01:07]} 23. Ne2 {[%clk 0:00:21.9]}
23... Rd6 {[%clk 0:01:04]} 24. b3 {[%clk 0:00:19.7]} 24... Ra6 {[%clk
0:00:51.1]} 25. Kb2 {[%clk 0:00:14.8]} 25... Rd6 {[%clk 0:00:51.4]} 26. Re1
{[%clk 0:00:14.7]} 26... Nf6 {[%clk 0:00:48.2]} 27. Nf4 {[%clk 0:00:10.4]} 27...
Bd7 {[%clk 0:00:27.4]} 28. Nd3 {[%clk 0:00:10.5]} 28... a5 {[%clk 0:00:28.1]}
29. Re5 {[%clk 0:00:10.4]} 29... Bf5 {[%clk 0:00:26.1]} 30. Rxa5 {[%clk
0:00:09.3]} 30... Bxd3 {[%clk 0:00:25.7]} 31. cxd3 {[%clk 0:00:10.2]} 31... Rxd3
{[%clk 0:00:26.5]} 32. Kc2 {[%clk 0:00:10.6]} 32... Rc3+ {[%clk 0:00:27.1]} 33.
Kd2 {[%clk 0:00:11.1]} 33... Rc8 {[%clk 0:00:13.5]} 34. Rb5 {[%clk 0:00:07.6]}
34... Rd8+ {[%clk 0:00:14]} 35. Ke2 {[%clk 0:00:07.6]} 35... Re8+ {[%clk
0:00:12.5]} 36. Kf1 {[%clk 0:00:06.5]} 36... Ne4 {[%clk 0:00:12.3]} 37. Bxe4
{[%clk 0:00:02.8]} 37... Rxe4 {[%clk 0:00:13.2]} 38. h4 {[%clk 0:00:03.5]} 38...
h5 {[%clk 0:00:13.3]} 39. Kg2 {[%clk 0:00:03.8]} 39... Kf6 {[%clk 0:00:13.3]}
40. Kf3 {[%clk 0:00:04.4]} 40... Rd4 {[%clk 0:00:13.6]} 41. Ke3 {[%clk
0:00:05.1]} 41... Rg4 {[%clk 0:00:14.1]} 42. Rc5 {[%clk 0:00:03.3]} 42... Ke6
{[%clk 0:00:14]} 43. Rc4 {[%clk 0:00:03.6]} 43... Rxc4 {[%clk 0:00:07.2]} 44.
bxc4 {[%clk 0:00:04.5]} 44... Kd6 {[%clk 0:00:07.8]} 45. Kd4 {[%clk 0:00:04.8]}
45... Kc6 {[%clk 0:00:06.9]} 46. c5 {[%clk 0:00:05.1]} 46... Kb5 {[%clk
0:00:07.6]} 47. Kd5 {[%clk 0:00:05.5]} 47... Ka4 {[%clk 0:00:08.3]} 48. c6
{[%clk 0:00:06.1]} 48... Ka3 {[%clk 0:00:09.2]} 49. Kc4 {[%clk 0:00:06.3]} 49...
Kxa2 {[%clk 0:00:10.1]} 50. Kxb4 {[%clk 0:00:06.7]} 1-0

[Event "Early-Titled-Tuesday-Blitz-October-17-2023"]
[Site "Chess.com"]
[Date "2023.10.17"]
[Round "5"]
[White "McCarthyStone"]
[Black "Ginzburg_Yakov"]
[Result "0-1"]
[WhiteElo "2384"]
[BlackElo "2554"]
[TimeControl "180+1"]
[EndTime "8:58:13 PDT"]
[Termination "Ginzburg_Yakov won by resignation"]

1. b3 {[%clk 0:03:00.9]} 1... e5 {[%clk 0:02:59.2]} 2. Bb2 {[%clk 0:03:01.8]}
2... f6 {[%clk 0:02:56.6]} 3. d4 {[%clk 0:03:00.9]} 3... d6 {[%clk 0:02:54.2]}
4. e3 {[%clk 0:02:58.9]} 4... Ne7 {[%clk 0:02:53.3]} 5. Bd3 {[%clk 0:02:58.2]}
5... Bf5 {[%clk 0:02:47.7]} 6. Bxf5 {[%clk 0:02:42.8]} 6... Nxf5 {[%clk
0:02:47.2]} 7. Qh5+ {[%clk 0:02:42.2]} 7... g6 {[%clk 0:02:47.2]} 8. Qf3 {[%clk
0:02:42.8]} 8... Nc6 {[%clk 0:02:43.5]} 9. g4 {[%clk 0:02:24.8]} 9... Nh4 {[%clk
0:02:32.7]} 10. Qg3 {[%clk 0:02:14.2]} 10... g5 {[%clk 0:02:18.3]} 11. Nd2
{[%clk 0:02:13.1]} 11... Qd7 {[%clk 0:02:08.5]} 12. O-O-O {[%clk 0:02:11.5]}
12... O-O-O {[%clk 0:02:07.8]} 13. Ne2 {[%clk 0:02:10.8]} 13... Be7 {[%clk
0:02:04.7]} 14. Kb1 {[%clk 0:02:10.4]} 14... Kb8 {[%clk 0:01:59.9]} 15. d5
{[%clk 0:02:06.6]} 15... Nb4 {[%clk 0:01:58.7]} 16. Nc4 {[%clk 0:01:47.7]} 16...
h5 {[%clk 0:01:47.1]} 17. h3 {[%clk 0:01:43.1]} 17... f5 {[%clk 0:01:47.3]} 18.
f4 {[%clk 0:01:41.7]} 18... exf4 {[%clk 0:01:28.6]} 19. exf4 {[%clk 0:01:42.6]}
19... Rh7 {[%clk 0:01:25.2]} 20. fxg5 {[%clk 0:01:31.8]} 20... Bxg5 {[%clk
0:01:24]} 21. gxh5 {[%clk 0:01:32.3]} 21... Rxh5 {[%clk 0:01:22.2]} 22. Nd4
{[%clk 0:01:30.1]} 22... f4 {[%clk 0:01:14.7]} 23. Qg4 {[%clk 0:01:00.4]} 23...
Qh7 {[%clk 0:01:14.5]} 24. a3 {[%clk 0:00:55.7]} 24... Nxd5 {[%clk 0:01:14]} 25.
Ne6 {[%clk 0:00:54.6]} 25... Ne3 {[%clk 0:00:53.6]} 26. Nxe3 {[%clk 0:00:49.2]}
26... fxe3 {[%clk 0:00:53.5]} 27. Nxg5 {[%clk 0:00:28.7]} 27... Qg6 {[%clk
0:00:52.3]} 28. Ne6 {[%clk 0:00:14.1]} 28... Rg8 {[%clk 0:00:46.8]} 29. Nf4
{[%clk 0:00:11.3]} 29... Qxg4 {[%clk 0:00:31.6]} 30. hxg4 {[%clk 0:00:10.7]}
30... Rh7 {[%clk 0:00:31.1]} 31. Rdg1 {[%clk 0:00:03.8]} 31... b6 {[%clk
0:00:07.2]} 32. Bf6 {[%clk 0:00:03]} 32... Nf3 {[%clk 0:00:04.7]} 33. Rxh7
{[%clk 0:00:03.1]} 33... Nxg1 {[%clk 0:00:04.9]} 34. Rh1 {[%clk 0:00:01.5]}
34... Rxg4 {[%clk 0:00:04.4]} 35. Ne2 {[%clk 0:00:01.5]} 35... Nxe2 {[%clk
0:00:03.9]} 36. Bb2 {[%clk 0:00:01.7]} 36... Kb7 {[%clk 0:00:04.1]} 37. Re1
{[%clk 0:00:02.2]} 37... Rg2 {[%clk 0:00:04.8]} 38. Bd4 {[%clk 0:00:02.7]} 38...
Nxd4 {[%clk 0:00:04.6]} 39. Rxe3 {[%clk 0:00:03.6]} 39... Nxc2 {[%clk
0:00:05.2]} 40. Rc3 {[%clk 0:00:03.3]} 40... Nxa3+ {[%clk 0:00:06]} 0-1

[Event "Early-Titled-Tuesday-Blitz-October-17-2023"]
[Site "Chess.com"]
[Date "2023.10.17"]
[Round "5"]
[White "wqws"]
[Black "RobertoJBM"]
[Result "1-0"]
[WhiteElo "2649"]
[BlackElo "2790"]
[TimeControl "180+1"]
[EndTime "8:58:16 PDT"]
[Termination "wqws won by resignation"]

1. e4 {[%clk 0:02:56.3]} 1... c6 {[%clk 0:03:00]} 2. d4 {[%clk 0:02:56.2]} 2...
d5 {[%clk 0:03:00.9]} 3. e5 {[%clk 0:02:56.8]} 3... Bf5 {[%clk 0:03:00.5]} 4. h4
{[%clk 0:02:55.4]} 4... Qb6 {[%clk 0:03:00]} 5. Nf3 {[%clk 0:02:51.5]} 5... e6
{[%clk 0:02:54.9]} 6. c3 {[%clk 0:02:49.6]} 6... c5 {[%clk 0:02:50.6]} 7. Nbd2
{[%clk 0:02:44.3]} 7... Nc6 {[%clk 0:02:49.7]} 8. Nb3 {[%clk 0:02:41.8]} 8... c4
{[%clk 0:02:44.8]} 9. Nbd2 {[%clk 0:02:41.2]} 9... Qc7 {[%clk 0:02:35]} 10. Be2
{[%clk 0:02:36.4]} 10... b5 {[%clk 0:02:33.7]} 11. Nf1 {[%clk 0:02:36.4]} 11...
h6 {[%clk 0:02:33.1]} 12. Ne3 {[%clk 0:02:35.3]} 12... Be4 {[%clk 0:02:32.9]}
13. O-O {[%clk 0:02:35.1]} 13... Nge7 {[%clk 0:02:32.1]} 14. Nd2 {[%clk
0:02:34.4]} 14... Bh7 {[%clk 0:02:31.5]} 15. f4 {[%clk 0:02:33]} 15... Nf5
{[%clk 0:02:28.2]} 16. Nxf5 {[%clk 0:02:32.6]} 16... Bxf5 {[%clk 0:02:25.1]} 17.
Bg4 {[%clk 0:02:21.3]} 17... Bxg4 {[%clk 0:02:22.7]} 18. Qxg4 {[%clk 0:02:21.3]}
18... h5 {[%clk 0:02:23.3]} 19. Qg3 {[%clk 0:02:19]} 19... g6 {[%clk 0:02:22.7]}
20. Nf3 {[%clk 0:02:18.8]} 20... Bh6 {[%clk 0:02:21]} 21. Ng5 {[%clk 0:02:09.7]}
21... Ne7 {[%clk 0:02:18.9]} 22. Qf2 {[%clk 0:02:03.6]} 22... Bxg5 {[%clk
0:02:16.3]} 23. fxg5 {[%clk 0:02:01.7]} 23... Nf5 {[%clk 0:02:17.2]} 24. a4
{[%clk 0:02:01.1]} 24... b4 {[%clk 0:01:59.3]} 25. cxb4 {[%clk 0:01:58.3]} 25...
Qb6 {[%clk 0:01:58.9]} 26. b5 {[%clk 0:01:49.1]} 26... Qxd4 {[%clk 0:01:55.6]}
27. Qxd4 {[%clk 0:01:48.2]} 27... Nxd4 {[%clk 0:01:56.5]} 28. Bd2 {[%clk
0:01:37.1]} 28... O-O {[%clk 0:01:38.1]} 29. Bb4 {[%clk 0:01:31]} 29... Rfc8
{[%clk 0:01:37.9]} 30. Rad1 {[%clk 0:01:28.2]} 30... Nf5 {[%clk 0:01:36.2]} 31.
Rf4 {[%clk 0:01:27.3]} 31... d4 {[%clk 0:01:26.5]} 32. Rfxd4 {[%clk 0:01:22.8]}
32... Nxd4 {[%clk 0:01:27.4]} 33. Rxd4 {[%clk 0:01:22]} 33... Rd8 {[%clk
0:01:26.4]} 34. Rxc4 {[%clk 0:01:17.5]} 34... Rac8 {[%clk 0:01:23.6]} 35. Rxc8
{[%clk 0:01:07.7]} 35... Rxc8 {[%clk 0:01:23.7]} 36. b3 {[%clk 0:00:53.1]} 36...
Rc1+ {[%clk 0:00:24.9]} 37. Kf2 {[%clk 0:00:35.4]} 37... Rb1 {[%clk 0:00:25.8]}
38. Bc5 {[%clk 0:00:30.1]} 38... Rxb3 {[%clk 0:00:25.3]} 39. Bxa7 {[%clk
0:00:29.8]} 39... Kf8 {[%clk 0:00:23.9]} 40. b6 {[%clk 0:00:22]} 40... Ke8
{[%clk 0:00:23.9]} 41. a5 {[%clk 0:00:22]} 41... Kd7 {[%clk 0:00:19.1]} 42. a6
{[%clk 0:00:22.2]} 42... Kc6 {[%clk 0:00:06.2]} 43. b7 {[%clk 0:00:22.3]} 43...
Kc7 {[%clk 0:00:03]} 44. Ke2 {[%clk 0:00:17.9]} 44... Rb5 {[%clk 0:00:02.7]} 45.
Kd3 {[%clk 0:00:17.4]} 45... Rb1 {[%clk 0:00:02.8]} 46. b8=Q+ {[%clk 0:00:16]}
46... Rxb8 {[%clk 0:00:02.2]} 47. Bxb8+ {[%clk 0:00:16.9]} 47... Kxb8 {[%clk
0:00:03.1]} 48. Kc4 {[%clk 0:00:17.8]} 1-0

[Event "Early-Titled-Tuesday-Blitz-October-17-2023"]
[Site "Chess.com"]
[Date "2023.10.17"]
[Round "5"]
[White "Iball95"]
[Black "Kostya0705"]
[Result "1-0"]
[WhiteElo "2821"]
[BlackElo "2641"]
[TimeControl "180+1"]
[EndTime "8:58:18 PDT"]
[Termination "Iball95 won by resignation"]

1. e4 {[%clk 0:03:00]} 1... c5 {[%clk 0:03:00.3]} 2. Nf3 {[%clk 0:03:00.9]} 2...
e6 {[%clk 0:03:00.7]} 3. Nc3 {[%clk 0:03:01.4]} 3... Nc6 {[%clk 0:03:00.6]} 4.
d4 {[%clk 0:03:02.1]} 4... cxd4 {[%clk 0:03:00.6]} 5. Nxd4 {[%clk 0:03:03]} 5...
Qc7 {[%clk 0:03:01.4]} 6. Nxc6 {[%clk 0:03:03.2]} 6... bxc6 {[%clk 0:03:01.3]}
7. Qf3 {[%clk 0:03:02.7]} 7... d5 {[%clk 0:03:00.7]} 8. Qg3 {[%clk 0:03:01.1]}
8... Qxg3 {[%clk 0:02:59.9]} 9. hxg3 {[%clk 0:03:02]} 9... Bb4 {[%clk
0:02:59.3]} 10. Bd2 {[%clk 0:03:00.7]} 10... Ne7 {[%clk 0:02:58.7]} 11. Bd3
{[%clk 0:02:53.7]} 11... Bb7 {[%clk 0:02:54.9]} 12. a3 {[%clk 0:02:50.5]} 12...
Bd6 {[%clk 0:02:53.8]} 13. O-O-O {[%clk 0:02:49.1]} 13... c5 {[%clk 0:02:52.2]}
14. exd5 {[%clk 0:02:46.5]} 14... exd5 {[%clk 0:02:49.5]} 15. Rhe1 {[%clk
0:02:37.6]} 15... a6 {[%clk 0:02:45.8]} 16. Bf4 {[%clk 0:02:28.9]} 16... Kd7
{[%clk 0:02:38.1]} 17. Na4 {[%clk 0:02:17.2]} 17... Rae8 {[%clk 0:02:21.2]} 18.
b3 {[%clk 0:02:08.5]} 18... Bc6 {[%clk 0:02:06]} 19. Nb6+ {[%clk 0:01:46.5]}
19... Kc7 {[%clk 0:02:03]} 20. Bxd6+ {[%clk 0:01:47.4]} 20... Kxd6 {[%clk
0:02:02.9]} 21. Bxa6 {[%clk 0:01:48.3]} 21... Kc7 {[%clk 0:01:56.7]} 22. Na4
{[%clk 0:01:42.5]} 22... c4 {[%clk 0:01:53.2]} 23. Re3 {[%clk 0:01:05.3]} 23...
Nf5 {[%clk 0:01:47.7]} 24. Rxe8 {[%clk 0:01:02.9]} 24... Rxe8 {[%clk 0:01:48.6]}
25. Nc3 {[%clk 0:00:56.3]} 25... Kb6 {[%clk 0:01:36.9]} 26. Nxd5+ {[%clk
0:00:54.1]} 26... Kxa6 {[%clk 0:01:28.3]} 27. Nc7+ {[%clk 0:00:54.5]} 27... Kb7
{[%clk 0:01:27.4]} 28. Nxe8 {[%clk 0:00:55.4]} 28... Bxe8 {[%clk 0:01:27.6]} 29.
g4 {[%clk 0:00:50]} 29... Nh6 {[%clk 0:01:27.1]} 30. f3 {[%clk 0:00:48.1]} 30...
Kc7 {[%clk 0:01:18.7]} 31. Kb2 {[%clk 0:00:48.2]} 31... f5 {[%clk 0:01:17.8]}
32. g5 {[%clk 0:00:36.2]} 32... Nf7 {[%clk 0:01:16.9]} 33. f4 {[%clk 0:00:37.1]}
33... h6 {[%clk 0:01:11.5]} 34. gxh6 {[%clk 0:00:38]} 34... Nxh6 {[%clk
0:01:10.3]} 35. Kc3 {[%clk 0:00:35]} 35... cxb3 {[%clk 0:01:10.3]} 36. cxb3
{[%clk 0:00:35.9]} 36... Ng4 {[%clk 0:01:08.7]} 37. Kd4 {[%clk 0:00:32.5]} 37...
Kd6 {[%clk 0:01:02.7]} 38. a4 {[%clk 0:00:32]} 38... Bf7 {[%clk 0:00:56.7]} 39.
b4 {[%clk 0:00:32]} 39... Nf6 {[%clk 0:00:50.6]} 40. g3 {[%clk 0:00:26.3]} 40...
Ne4 {[%clk 0:00:46]} 41. g4 {[%clk 0:00:24.9]} 41... Nf2 {[%clk 0:00:45.6]} 42.
Rc1 {[%clk 0:00:23.2]} 42... fxg4 {[%clk 0:00:42.6]} 43. b5 {[%clk 0:00:23.4]}
43... g3 {[%clk 0:00:40.9]} 44. Rg1 {[%clk 0:00:22.7]} 44... Bb3 {[%clk
0:00:31.7]} 45. a5 {[%clk 0:00:18.8]} 45... Bf7 {[%clk 0:00:15.9]} 46. Rxg3
{[%clk 0:00:18.8]} 46... Be8 {[%clk 0:00:16.3]} 47. b6 {[%clk 0:00:18.5]} 47...
g6 {[%clk 0:00:16.4]} 48. Rc3 {[%clk 0:00:17.5]} 48... Bc6 {[%clk 0:00:12.1]}
49. a6 {[%clk 0:00:18.3]} 49... Ne4 {[%clk 0:00:12.5]} 50. b7 {[%clk 0:00:17.7]}
1-0